bitfinex-derivatives/quotes_BTCF0:USTF0_20250402
["timestamp","ask_amount","ask_price","bid_price","bid_amount"]
[1743589331233,0.24081827,85302.0,85301.0,0.4780295]
[1743589332650,0.24081827,85302.0,85301.0,0.5258295]
[1743589332951,0.24081827,85302.0,85301.0,0.1650295]
[1743589335255,0.24153827,85302.0,85301.0,0.1656295]
[1743589338949,0.24153827,85302.0,85301.0,0.2152295]
[1743589340150,0.24153827,85302.0,85301.0,0.098]
[1743589340454,0.24153827,85302.0,85301.0,0.2152295]
[1743589343948,0.24153827,85302.0,85301.0,0.098]
[1743589344149,0.28913827,85302.0,85301.0,0.0974]
[1743589344459,0.64993827,85302.0,85301.0,0.0974]
[1743589344653,0.69953827,85302.0,85301.0,0.0974]
[1743589347758,0.69953827,85302.0,85301.0,0.0496]
[1743589348060,0.69953827,85302.0,85295.0,0.0477]
[1743589348061,0.1172364,85296.0,85295.0,0.0477]
[1743589348249,0.1179564,85296.0,85295.0,0.0976]
[1743589348450,0.24809941,85296.0,85295.0,0.0976]
[1743589348651,0.29589941,85296.0,85295.0,0.0982]
[1743589351565,0.29589941,85296.0,85295.0,0.0976]
[1743589353661,0.34769941,85296.0,85295.0,0.0976]
[1743589354771,0.34769941,85296.0,85295.0,0.0499]
[1743589359166,0.45308986,85296.0,85295.0,0.0499]
[1743589362668,0.34769941,85296.0,85295.0,0.0499]
[1743589366772,0.34769941,85296.0,85295.0,0.0505]
[1743589366773,0.29589941,85296.0,85295.0,0.0505]
[1743589366972,0.29589941,85296.0,85295.0,0.0987]
[1743589368570,0.13086301,85296.0,85295.0,0.2153378]
[1743589368771,0.13086301,85296.0,85295.0,0.2159378]
[1743589370167,0.24809941,85296.0,85295.0,0.2159378]
[1743589374081,0.13086301,85296.0,85295.0,0.2159378]
[1743589375686,0.13014301,85296.0,85295.0,0.2159378]
[1743589375881,0.13086301,85296.0,85295.0,0.2159378]
[1743589376574,0.13086301,85296.0,85295.0,0.5767378]
[1743589377476,0.13086301,85296.0,85295.0,0.2159378]
[1743589377678,0.13086301,85296.0,85295.0,0.5767378]
[1743589378984,0.13014301,85296.0,85295.0,0.5767378]
[1743589379289,0.13094301,85296.0,85295.0,0.5767378]
[1743589380684,0.13014301,85296.0,85295.0,0.5767378]
[1743589381082,0.24809941,85296.0,85295.0,0.5767378]
[1743589381278,0.24737941,85296.0,85295.0,0.4595]
[1743589381481,0.30013941,85296.0,85295.0,0.0987]
[1743589381978,0.34913941,85296.0,85295.0,0.0987]
[1743589386597,0.18290301,85296.0,85295.0,0.2153378]
[1743589386801,0.18290301,85296.0,85295.0,0.2159378]
[1743589387393,0.30013941,85296.0,85295.0,0.2159378]
[1743589387890,0.13090301,85296.0,85295.0,0.2159378]
[1743589388083,0.13014301,85296.0,85295.0,0.2159378]
[1743589388285,0.13090301,85296.0,85295.0,0.2159378]
[1743589388594,0.00076,85296.0,85295.0,0.2159378]
[1743589388894,0.12897314,85296.0,85295.0,0.2159378]
[1743589392592,0.24620954,85296.0,85295.0,0.2159378]
[1743589393994,0.12897314,85296.0,85295.0,0.2159378]
[1743589394391,0.12821314,85296.0,85295.0,0.2159378]
[1743589395191,0.12893314,85296.0,85295.0,0.2159378]
[1743589395594,0.24616954,85296.0,85295.0,0.2159378]
[1743589396191,0.12893314,85296.0,85295.0,0.2159378]
[1743589397198,0.24616954,85296.0,85295.0,0.2159378]
[1743589397895,0.12893314,85296.0,85295.0,0.2159378]
[1743589398590,0.12821314,85296.0,85295.0,0.2159378]
[1743589398791,0.24544954,85296.0,85295.0,0.2159378]
[1743589398997,0.24624954,85296.0,85295.0,0.2159378]
[1743589399595,0.12901314,85296.0,85295.0,0.2159378]
[1743589399798,0.12897314,85296.0,85295.0,0.2159378]
[1743589402396,0.12821314,85296.0,85295.0,0.2159378]
[1743589402599,0.12893314,85296.0,85295.0,0.2159378]
[1743589402800,0.12821314,85296.0,85295.0,0.2159378]
[1743589402984,0.12897314,85296.0,85295.0,0.2159378]
[1743589403192,0.24620954,85296.0,85295.0,0.1677378]
[1743589403492,0.29550954,85296.0,85295.0,0.1677378]
[1743589403688,0.12897314,85296.0,85295.0,0.2194378]
[1743589403888,0.12821314,85296.0,85295.0,0.2194378]
[1743589404085,0.24620954,85296.0,85295.0,0.2194378]
[1743589407192,0.24620954,85296.0,85295.0,0.5802378]
[1743589408396,0.12897314,85296.0,85295.0,0.5802378]
[1743589408707,0.12821314,85296.0,85295.0,0.5802378]
[1743589409405,0.1172353,85297.0,85295.0,0.5802378]
[1743589409406,0.1173153,85297.0,85296.0,0.1172364]
[1743589409594,0.0008,85297.0,85296.0,0.2206364]
[1743589409802,0.2399202,85297.0,85296.0,0.0522]
[1743589410100,0.2406402,85297.0,85296.0,0.0006]
[1743589410299,0.2887402,85297.0,85296.0,0.0006]
[1743589410601,0.3410402,85297.0,85296.0,0.0006]
[1743589412604,0.3410402,85297.0,85290.0,0.1172435]
[1743589412605,0.1172433,85291.0,85290.0,0.1172435]
[1743589412811,0.1172446,85290.0,85289.0,0.20979376]
[1743589412991,0.2175446,85290.0,85289.0,0.21055376]
[1743589413196,0.34966873,85290.0,85289.0,0.25925376]
[1743589414499,0.34966873,85290.0,85289.0,0.37649976]
[1743589414706,0.34966873,85290.0,85289.0,0.32779976]
[1743589415017,0.34966873,85290.0,85289.0,0.21055376]
[1743589415203,0.34966873,85290.0,85289.0,0.26025376]
[1743589416012,0.34966873,85290.0,85289.0,0.05046]
[1743589418401,0.34966873,85290.0,85289.0,0.00076]
[1743589420098,0.1172474,85288.0,85287.0,0.00017583]
[1743589420295,0.1179674,85288.0,85287.0,0.00077583]
[1743589420502,0.34664228,85288.0,85287.0,0.00077583]
[1743589420808,0.34664228,85288.0,85287.0,0.05157583]
[1743589421603,0.34664228,85288.0,85287.0,0.10417583]
[1743589424000,0.34664228,85288.0,85287.0,0.22142463]
[1743589424001,0.29594228,85288.0,85287.0,0.22142463]
[1743589424904,0.29594228,85288.0,85287.0,0.10417583]
[1743589425810,0.34744228,85288.0,85287.0,0.22142463]
[1743589426815,0.34744228,85288.0,85287.0,0.10417583]
[1743589427408,0.34744228,85288.0,85287.0,0.22142463]
[1743589427915,0.29594228,85288.0,85287.0,0.22142463]
[1743589431619,0.29594228,85288.0,85287.0,0.10417583]
[1743589433605,0.29594228,85288.0,85287.0,0.22142463]
[1743589433821,0.29594228,85288.0,85287.0,0.10417583]
[1743589434112,0.29594228,85288.0,85287.0,0.11802463]
[1743589434316,0.34384228,85288.0,85287.0,0.00077583]
[1743589434506,0.34384228,85288.0,85287.0,0.00017583]
[1743589434818,0.34384228,85288.0,85287.0,0.00077583]
[1743589435020,0.34384228,85288.0,85287.0,0.10187583]
[1743589435412,0.29594228,85288.0,85287.0,0.21912463]
[1743589435613,0.29594228,85288.0,85287.0,0.10187583]
[1743589437310,0.29594228,85288.0,85287.0,0.21912463]
[1743589439514,0.29594228,85288.0,85287.0,0.10187583]
[1743589440219,0.29594228,85288.0,85287.0,0.21912463]
[1743589440419,0.24474228,85288.0,85287.0,0.21912463]
[1743589442220,0.24474228,85288.0,85287.0,0.10187583]
[1743589442408,0.29574228,85288.0,85287.0,0.10187583]
[1743589442718,0.29574228,85288.0,85287.0,0.21912463]
[1743589443222,0.29574228,85288.0,85287.0,0.10187583]
[1743589443725,0.24474228,85288.0,85287.0,0.21912463]
[1743589444523,0.24474228,85288.0,85287.0,0.10187583]
[1743589445030,0.29574228,85288.0,85287.0,0.10187583]
[1743589445820,0.29574228,85288.0,85287.0,0.21912463]
[1743589446015,0.29574228,85288.0,85287.0,0.10187583]
[1743589449023,0.34454228,85288.0,85287.0,0.10187583]
[1743589450016,0.34454228,85288.0,85287.0,0.00077583]
[1743589450223,0.34454228,85288.0,85287.0,0.00017583]
[1743589452421,0.1172488,85287.0,85286.0,0.00046901]
[1743589452825,0.34778836,85287.0,85286.0,0.00046901]
[1743589453214,0.17949956,85287.0,85286.0,0.00046901]
[1743589453421,0.12643956,85287.0,85286.0,0.11771911]
[1743589453720,8e-05,85288.0,85286.0,0.22051911]
[1743589453925,0.1172474,85288.0,85287.0,0.2931213]
[1743589454132,0.0586227,85290.0,85289.0,0.117246]
[1743589454628,0.18080808,85290.0,85289.0,0.117246]
[1743589455315,0.18080808,85290.0,85289.0,0.217846]
[1743589457226,0.12218538,85290.0,85289.0,0.217846]
[1743589457432,0.12218538,85290.0,85289.0,0.578646]
[1743589457633,0.10544691,85294.0,85293.0,0.1172405]
[1743589457931,0.22268601,85294.0,85293.0,0.1172405]
[1743589458128,0.35812513,85294.0,85293.0,0.1179205]
[1743589458535,0.35812513,85294.0,85293.0,0.2163205]
[1743589461138,0.25267822,85294.0,85293.0,0.2163205]
[1743589467932,0.13543912,85294.0,85293.0,0.2163205]
[1743589468126,0.13463912,85294.0,85293.0,0.2163205]
[1743589469034,0.13535912,85294.0,85293.0,0.2163205]
[1743589469243,0.25187822,85294.0,85293.0,0.2163205]
[1743589469434,0.25259822,85294.0,85293.0,0.2163205]
[1743589469636,0.13535912,85294.0,85293.0,0.2163205]
[1743589469835,0.13463912,85294.0,85293.0,0.2163205]
[1743589470237,0.13535912,85294.0,85293.0,0.2163205]
[1743589472041,0.13463912,85294.0,85293.0,0.2163205]
[1743589473553,0.13543912,85294.0,85293.0,0.2163205]
[1743589474150,0.13463912,85294.0,85293.0,0.2163205]
[1743589476150,0.13535912,85294.0,85293.0,0.2163205]
[1743589477051,0.13535912,85294.0,85293.0,0.42564256]
[1743589477842,0.25259822,85294.0,85293.0,0.42564256]
[1743589478142,0.25259822,85294.0,85293.0,0.30840206]
[1743589478339,0.30237822,85294.0,85293.0,0.21000206]
[1743589478554,0.40197822,85294.0,85293.0,0.21000206]
[1743589480450,0.1172446,85290.0,85286.0,0.00046901]
[1743589480647,0.4780488,85287.0,85286.0,0.00106901]
[1743589480848,0.4790488,85287.0,85286.0,0.00106901]
[1743589481151,0.60235857,85287.0,85286.0,0.00106901]
[1743589484061,0.74295446,85287.0,85286.0,0.00106901]
[1743589484246,0.74295446,85287.0,85286.0,0.00046901]
[1743589487155,0.117257,85281.0,85280.0,0.1]
[1743589487363,0.196257,85281.0,85280.0,0.1006]
[1743589487658,0.32740872,85281.0,85280.0,0.1]
[1743589487854,0.32740872,85281.0,85280.0,0.10068]
[1743589488257,0.42310872,85281.0,85280.0,0.10068]
[1743589490654,0.1172653,85275.0,85274.0,0.1021]
[1743589490858,0.4789853,85275.0,85274.0,0.1027]
[1743589491054,0.60847048,85275.0,85274.0,0.1021]
[1743589491553,0.60847048,85275.0,85274.0,0.1027]
[1743589494159,0.60847048,85275.0,85274.0,0.1511]
[1743589494656,0.60847048,85275.0,85274.0,0.1505]
[1743589494852,0.70627048,85275.0,85274.0,0.0512]
[1743589495254,0.1172694,85272.0,85271.0,0.0518]
[1743589495454,0.0586367,85269.0,85267.0,0.0484]
[1743589495762,0.1172763,85267.0,85258.0,0.3608]
[1743589496071,0.1172873,85259.0,85258.0,0.3608]
[1743589496260,0.1172873,85259.0,85258.0,0.36148]
[1743589496261,0.1182073,85259.0,85258.0,0.36148]
[1743589496462,0.64762717,85259.0,85258.0,0.00068]
[1743589496655,0.1172928,85255.0,85254.0,0.00046918]
[1743589496855,0.11853281,85255.0,85254.0,0.00046918]
[1743589497063,0.24105268,85255.0,85254.0,0.00046918]
[1743589498062,0.29135268,85255.0,85254.0,0.00046918]
[1743589498959,0.30019949,85255.0,85254.0,0.00162918]
[1743589499867,0.30019949,85255.0,85254.0,0.00046918]
[1743589500063,0.30019949,85255.0,85254.0,0.00106918]
[1743589500565,0.30019949,85255.0,85254.0,0.00046918]
[1743589501163,0.30019949,85255.0,85251.0,0.0507]
[1743589501164,0.18290669,85255.0,85251.0,0.0507]
[1743589501364,0.1172969,85252.0,85251.0,0.0507]
[1743589501568,0.11869691,85252.0,85251.0,0.0507]
[1743589501773,0.24622936,85252.0,85251.0,0.0507]
[1743589504867,0.24622936,85252.0,85251.0,0.0513]
[1743589505773,0.24622936,85252.0,85251.0,0.0507]
[1743589505974,0.24622936,85252.0,85251.0,0.05134]
[1743589507973,0.24622936,85252.0,85251.0,0.0507]
[1743589509074,0.29272936,85252.0,85251.0,0.0507]
[1743589509869,0.20701246,85252.0,85251.0,0.1679983]
[1743589510068,0.24622936,85252.0,85251.0,0.1685983]
[1743589510271,0.12893246,85252.0,85251.0,0.6258983]
[1743589510469,0.12753245,85252.0,85251.0,0.6258983]
[1743589511086,8e-05,85258.0,85257.0,0.11729]
[1743589511264,0.05881704,85263.0,85260.0,0.1172859]
[1743589511469,0.22381962,85261.0,85260.0,0.4786859]
[1743589511670,0.34783442,85261.0,85260.0,0.4786859]
[1743589512176,0.34783442,85261.0,85260.0,0.5777859]
[1743589513370,0.2426193,85261.0,85260.0,0.5777859]
[1743589518970,0.2426193,85261.0,85260.0,0.4605]
[1743589519576,0.2931193,85261.0,85260.0,0.5777859]
[1743589519771,0.2931193,85261.0,85260.0,0.5069]
[1743589520176,0.3423193,85261.0,85260.0,0.5069]
[1743589520377,0.3423193,85261.0,85260.0,0.1461]
[1743589520782,0.3423193,85261.0,85260.0,0.1455]
[1743589520988,0.3423193,85261.0,85260.0,0.14614]
[1743589521486,0.3423193,85261.0,85260.0,0.1455]
[1743589521672,0.3423193,85261.0,85260.0,0.0946]
[1743589522387,0.1172928,85255.0,85254.0,0.046]
[1743589522589,0.1172928,85255.0,85254.0,0.04732]
[1743589522590,0.1186128,85255.0,85254.0,0.04732]
[1743589522791,0.25258013,85255.0,85254.0,0.04732]
[1743589523786,0.30238013,85255.0,85254.0,0.04732]
[1743589524383,0.35298013,85255.0,85254.0,0.04732]
[1743589528294,0.35298013,85255.0,85254.0,0.00132]
[1743589530398,0.35298013,85255.0,85230.0,0.15854211]
[1743589530399,0.1173024,85248.0,85247.0,0.0471]
[1743589530795,0.34128792,85248.0,85247.0,0.0939]
[1743589531491,0.29378792,85248.0,85247.0,0.2112038]
[1743589531691,0.13018552,85248.0,85247.0,0.2112038]
[1743589531893,0.13018552,85248.0,85247.0,0.5720038]
[1743589532089,0.0463,85265.0,85257.0,0.11729]
[1743589532290,8e-05,85259.0,85257.0,0.47809]
[1743589532593,0.38214911,85258.0,85257.0,0.47809]
[1743589532892,0.24295311,85258.0,85257.0,0.47809]
[1743589533085,0.24295311,85258.0,85257.0,0.57449]
[1743589533490,0.24295311,85258.0,85257.0,0.4572]
[1743589533706,0.29185311,85258.0,85257.0,0.57449]
[1743589534996,0.29185311,85258.0,85257.0,0.57509]
[1743589535198,0.29185311,85258.0,85257.0,0.21429]
[1743589536601,0.24295311,85258.0,85257.0,0.57509]
[1743589537601,0.24295311,85258.0,85257.0,0.21429]
[1743589540502,0.34833559,85258.0,85257.0,0.21429]
[1743589541410,0.39573559,85258.0,85257.0,0.21429]
[1743589544199,0.34833559,85258.0,85257.0,0.21429]
[1743589544602,0.23104699,85258.0,85257.0,0.21429]
[1743589544901,0.10670248,85258.0,85257.0,0.21429]
[1743589545509,0.22399108,85258.0,85257.0,0.21429]
[1743589547410,0.1186086,85258.0,85257.0,0.21429]
[1743589547610,0.1172886,85258.0,85257.0,0.21429]
[1743589548700,0.1172886,85258.0,85257.0,0.097]
[1743589548908,0.29627632,85258.0,85257.0,0.05]
[1743589549108,0.34537632,85258.0,85257.0,0.05]
[1743589551308,0.34537632,85258.0,85257.0,0.11789]
[1743589551514,0.34537632,85258.0,85257.0,0.0006]
[1743589553813,0.1759529,85249.0,85248.0,0.1173016]
[1743589554107,0.1772729,85249.0,85248.0,0.1179016]
[1743589554309,0.31330435,85249.0,85248.0,0.1678016]
[1743589554710,0.31330435,85249.0,85248.0,0.0505]
[1743589555110,0.40800435,85249.0,85248.0,0.0505]
[1743589556215,0.40800435,85249.0,85248.0,0.1678024]
[1743589557016,0.40800435,85249.0,85248.0,0.2158024]
[1743589558011,0.40800435,85249.0,85248.0,0.0985]
[1743589558211,0.40800435,85249.0,85248.0,0.2158024]
[1743589558409,0.40800435,85249.0,85230.0,0.42007556]
[1743589558410,0.0586543,85244.0,85230.0,0.42007556]
[1743589558712,0.0586543,85244.0,85237.0,0.2798935]
[1743589558713,0.1173148,85239.0,85237.0,0.2798935]
[1743589558911,0.1188348,85239.0,85238.0,0.04836927]
[1743589559214,0.34076967,85239.0,85238.0,0.16568547]
[1743589559513,0.29436967,85239.0,85238.0,0.21368547]
[1743589561503,0.17705487,85239.0,85238.0,0.21368547]
[1743589561821,0.29436967,85239.0,85238.0,0.21368547]
[1743589566301,0.17705487,85239.0,85238.0,0.21368547]
[1743589566502,0.17705487,85239.0,85238.0,0.57448547]
[1743589566503,0.00152,85239.0,85238.0,0.57448547]
[1743589566811,8e-05,85240.0,85239.0,0.1173148]
[1743589567114,0.10546248,85244.0,85238.0,0.51582727]
[1743589567115,0.1759671,85242.0,85241.0,0.1759646]
[1743589567316,0.1774871,85242.0,85241.0,0.2716646]
[1743589568414,0.00152,85242.0,85241.0,0.2716646]
[1743589568615,0.10538248,85244.0,85243.0,0.1173093]
[1743589568810,8e-05,85256.0,85247.0,0.0586515]
[1743589569118,0.00152,85251.0,85250.0,0.5367495]
[1743589569309,0.14058997,85252.0,85251.0,0.1172983]
[1743589569508,0.14218997,85252.0,85251.0,0.1172983]
[1743589569817,0.25948687,85252.0,85251.0,0.2091983]
[1743589570015,0.25948687,85252.0,85251.0,0.2575983]
[1743589570215,0.1681769,85252.0,85251.0,0.2575983]
[1743589570419,0.30144682,85252.0,85251.0,0.2575983]
[1743589570921,0.34944682,85252.0,85251.0,0.2575983]
[1743589573323,0.0586557,85242.0,85238.0,0.00046927]
[1743589573522,0.1173231,85233.0,85230.0,0.00017594]
[1743589573716,0.4781231,85233.0,85230.0,0.00017594]
[1743589573906,0.61430563,85233.0,85230.0,0.00017594]
[1743589574108,0.1173244,85232.0,85231.0,0.35030041]
[1743589574417,0.1673444,85232.0,85231.0,0.35030041]
[1743589574620,0.34780693,85232.0,85231.0,0.35030041]
[1743589577710,0.1173327,85226.0,85202.0,0.54782874]
[1743589577913,0.1173589,85207.0,85202.0,0.54782874]
[1743589578114,0.1188789,85207.0,85202.0,0.54782874]
[1743589578425,0.24855537,85207.0,85202.0,0.54782874]
[1743589578815,0.34275537,85207.0,85202.0,0.54782874]
[1743589579114,0.34275537,85207.0,85200.0,0.1]
[1743589579624,0.35141381,85207.0,85200.0,0.1]
[1743589582223,0.71221381,85207.0,85200.0,0.1]
[1743589584925,0.1173671,85201.0,85200.0,0.1]
[1743589585223,0.1188871,85201.0,85200.0,0.1]
[1743589585421,0.24734308,85201.0,85200.0,0.1]
[1743589593731,0.32538308,85201.0,85200.0,0.1]
[1743589596332,0.41748308,85201.0,85200.0,0.1]
[1743589597837,0.41748308,85201.0,85200.0,0.193]
[1743589599536,0.37168308,85201.0,85200.0,0.193]
[1743589599735,0.32538308,85201.0,85200.0,0.3103685]
[1743589600239,0.12997598,85201.0,85200.0,0.3103685]
[1743589600536,0.24734308,85201.0,85200.0,0.3103685]
[1743589601333,0.12997598,85201.0,85200.0,0.3103685]
[1743589601522,0.24582308,85201.0,85200.0,0.3103685]
[1743589601728,0.24734308,85201.0,85200.0,0.3103685]
[1743589608929,0.24734308,85201.0,85200.0,0.193]
[1743589609133,0.29254308,85201.0,85200.0,0.193]
[1743589609340,0.29254308,85201.0,85200.0,0.3103685]
[1743589609736,0.29254308,85201.0,85200.0,0.193]
[1743589611033,0.65334308,85201.0,85200.0,0.193]
[1743589611535,0.77718308,85201.0,85200.0,0.1462]
[1743589611735,0.82558308,85201.0,85200.0,0.1]
[1743589612640,0.058687,85196.0,85189.0,1e-08]
[1743589612937,0.0586959,85183.0,85173.0,0.0474]
[1743589613143,0.1174029,85175.0,85173.0,0.0474]
[1743589613326,0.1189229,85175.0,85167.0,0.0927]
[1743589613530,0.24895906,85175.0,85167.0,0.0927]
[1743589613735,0.1174126,85168.0,85167.0,0.0927]
[1743589613945,0.5577726,85168.0,85167.0,0.0927]
[1743589614143,0.68991879,85168.0,85167.0,0.0927]
[1743589615439,0.61187879,85168.0,85167.0,0.210114]
[1743589616644,0.49446619,85168.0,85167.0,0.210114]
[1743589616947,0.25107879,85168.0,85167.0,0.210114]
[1743589622042,0.13366619,85168.0,85167.0,0.570914]
[1743589622442,0.25107879,85168.0,85167.0,0.570914]
[1743589623344,0.13366619,85168.0,85167.0,0.570914]
[1743589623852,0.25107879,85168.0,85167.0,0.570914]
[1743589625450,0.13366619,85168.0,85167.0,0.570914]
[1743589625840,0.00152,85168.0,85167.0,0.570914]
[1743589626040,0.14033925,85174.0,85173.0,0.1174057]
[1743589626240,0.14189926,85174.0,85173.0,0.1174057]
[1743589626837,0.14189926,85174.0,85173.0,0.2168057]
[1743589626838,0.25930356,85174.0,85173.0,0.2168057]
[1743589627039,0.11896431,85174.0,85173.0,0.2168057]
[1743589627442,0.00156001,85174.0,85173.0,0.2168057]
[1743589627643,0.1174001,85178.0,85177.0,0.1174002]
[1743589627943,0.1190001,85178.0,85177.0,0.1174002]
[1743589628144,0.0016,85178.0,85177.0,0.1174002]
[1743589628449,0.1173961,85180.0,85179.0,0.1173974]
[1743589628651,0.1189161,85180.0,85179.0,0.1173974]
[1743589629255,0.1189161,85180.0,85179.0,0.2114974]
[1743589629647,0.1677161,85180.0,85179.0,0.2114974]
[1743589634554,0.00152,85180.0,85179.0,0.2114974]
[1743589634858,0.00152,85180.0,85179.0,0.5722974]
[1743589635154,0.00048,85199.0,85179.0,0.5722974]
[1743589635155,0.00048,85199.0,85185.0,0.1173892]
[1743589635350,0.17646407,85186.0,85185.0,0.1180292]
[1743589636054,0.17646407,85186.0,85185.0,0.2153292]
[1743589636454,0.16582781,85186.0,85185.0,0.22430251]
[1743589636961,0.29147117,85186.0,85185.0,0.00064]
[1743589637147,0.1173947,85181.0,85180.0,0.1655961]
[1743589637349,0.1173974,85179.0,85178.0,0.058699]
[1743589637551,0.11843741,85179.0,85178.0,0.107499]
[1743589637750,0.24408077,85179.0,85178.0,0.107499]
[1743589638068,0.34208077,85179.0,85178.0,0.107499]
[1743589638250,0.34208077,85179.0,85178.0,0.0488]
[1743589638452,0.34208077,85179.0,85178.0,0.1661988]
[1743589638668,0.34208077,85179.0,85178.0,0.0006]
[1743589639357,0.34208077,85179.0,85178.0,0.1179988]
[1743589639957,0.34208077,85179.0,85178.0,0.0006]
[1743589641756,0.34208077,85179.0,85177.0,0.00017604]
[1743589641757,0.1173988,85178.0,85177.0,0.00017604]
[1743589641953,0.1184788,85178.0,85177.0,0.00017604]
[1743589642154,0.35224723,85178.0,85177.0,0.00017604]
[1743589645958,0.43028723,85178.0,85177.0,0.00017604]
[1743589648152,0.48737557,85178.0,85177.0,0.00017604]
[1743589649659,0.84817557,85178.0,85177.0,0.00017604]
[1743589650451,0.72323557,85178.0,85177.0,0.11757624]
[1743589650660,0.72323557,85178.0,85177.0,0.00077604]
[1743589650859,0.72323557,85178.0,85177.0,0.09777604]
[1743589651457,0.72323557,85178.0,85177.0,0.04897604]
[1743589651653,0.72323557,85178.0,85177.0,0.00077604]
[1743589651861,0.72323557,85178.0,85177.0,0.00017604]
[1743589652266,0.77413557,85178.0,85177.0,0.00017604]
[1743589653462,0.77413557,85178.0,85177.0,0.00077604]
[1743589654859,0.77413557,85178.0,85177.0,0.11817624]
[1743589655058,0.77413557,85178.0,85177.0,0.11757624]
[1743589655261,0.77413557,85178.0,85177.0,0.11817624]
[1743589655569,0.72323557,85178.0,85177.0,0.11817624]
[1743589655768,0.72323557,85178.0,85177.0,0.09997604]
[1743589656773,0.72323557,85178.0,85177.0,0.21737624]
[1743589657162,0.72323557,85178.0,85177.0,0.09997604]
[1743589658071,0.77283557,85178.0,85177.0,0.21737624]
[1743589658661,0.72323557,85178.0,85177.0,0.21737624]
[1743589660266,0.84187649,85178.0,85177.0,0.21737624]
[1743589660767,0.84187649,85178.0,85177.0,0.09997604]
[1743589660969,0.84187649,85178.0,85177.0,0.21737624]
[1743589663462,0.84187649,85178.0,85177.0,0.09997604]
[1743589663975,0.66614723,85178.0,85177.0,0.09997604]
[1743589664370,0.66614723,85178.0,85177.0,0.21737624]
[1743589665165,0.66614723,85178.0,85177.0,0.09997604]
[1743589665373,0.66614723,85178.0,85177.0,0.21737624]
[1743589666467,0.66614723,85178.0,85177.0,0.09997604]
[1743589666668,0.66614723,85178.0,85177.0,0.21677624]
[1743589666863,0.66614723,85178.0,85177.0,0.21737624]
[1743589667078,0.66614723,85178.0,85177.0,0.09997604]
[1743589667267,0.66614723,85178.0,85177.0,0.09937604]
[1743589668077,0.7232327,85178.0,85177.0,0.09937604]
[1743589668373,0.7232327,85178.0,85177.0,0.10005604]
[1743589668771,0.3624327,85178.0,85177.0,0.10005604]
[1743589669073,0.3624327,85178.0,85177.0,0.21745624]
[1743589669677,0.1941339,85178.0,85177.0,0.21745624]
[1743589670083,0.3115327,85178.0,85177.0,0.21745624]
[1743589671875,0.3611327,85178.0,85177.0,0.21745624]
[1743589674377,0.57240022,85178.0,85177.0,0.21745624]
[1743589676390,0.52280022,85178.0,85177.0,0.21745624]
[1743589676585,0.56980022,85178.0,85177.0,0.21745624]
[1743589677088,0.52280022,85178.0,85177.0,0.21745624]
[1743589677485,0.57360022,85178.0,85177.0,0.21745624]
[1743589677784,0.3623327,85178.0,85177.0,0.21745624]
[1743589681784,0.1941339,85178.0,85177.0,0.21745624]
[1743589681989,0.1930539,85178.0,85177.0,0.21745624]
[1743589682181,0.19409391,85178.0,85177.0,0.21745624]
[1743589682381,0.1930539,85178.0,85177.0,0.21745624]
[1743589682582,0.19409391,85178.0,85177.0,0.21745624]
[1743589683388,0.31149271,85178.0,85177.0,0.21745624]
[1743589686594,0.31149271,85178.0,85177.0,0.05045604]
[1743589686794,0.40999271,85178.0,85177.0,0.09965604]
[1743589686987,0.40999271,85178.0,85177.0,0.05045604]
[1743589687194,0.35290724,85178.0,85177.0,0.00085604]
[1743589687590,0.1174167,85165.0,85164.0,0.28100288]
[1743589687796,0.1174167,85165.0,85164.0,0.28168288]
[1743589687994,0.117425,85159.0,85142.0,0.0004698]
[1743589688190,0.479665,85159.0,85158.0,0.35152175]
[1743589688386,0.60996304,85159.0,85158.0,0.35152175]
[1743589688783,0.70936304,85159.0,85158.0,0.35152175]
[1743589688983,0.23113804,85159.0,85158.0,0.35152175]
[1743589689195,0.29856304,85159.0,85158.0,0.35152175]
[1743589689690,0.65936304,85159.0,85158.0,0.35152175]
[1743589690890,0.65936304,85159.0,85158.0,0.46894815]
[1743589691392,0.65936304,85159.0,85158.0,0.35152175]
[1743589692191,0.65936304,85159.0,85158.0,0.46894815]
[1743589692392,0.71646515,85159.0,85158.0,0.00110971]
[1743589692586,0.71646515,85159.0,85158.0,0.11789611]
[1743589693088,0.35566515,85159.0,85158.0,0.00046971]
[1743589693594,0.35566515,85159.0,85158.0,0.10016971]
[1743589694098,0.35566515,85159.0,85158.0,0.00046971]
[1743589694284,0.40306515,85159.0,85158.0,0.00046971]
[1743589695087,0.40306515,85159.0,85131.0,0.0587314]
[1743589695088,0.1174457,85144.0,85143.0,0.1658471]
[1743589695293,0.1174457,85144.0,85143.0,0.2163871]
[1743589695495,0.24679573,85144.0,85143.0,0.2163871]
[1743589695695,0.24823573,85144.0,85143.0,0.09894]
[1743589696204,0.24823573,85144.0,85143.0,0.00064]
[1743589696399,0.34243573,85144.0,85143.0,0.00064]
[1743589696895,0.1174471,85143.0,85142.0,0.0004698]
[1743589697099,0.1188871,85143.0,85142.0,0.0004698]
[1743589697395,0.1174691,85127.0,85126.0,0.00046989]
[1743589697588,0.1189491,85127.0,85126.0,0.00106989]
[1743589697792,0.24731454,85127.0,85126.0,0.00106989]
[1743589697995,0.24731454,85127.0,85126.0,0.04716989]
[1743589698501,0.24731454,85127.0,85120.0,0.0587393]
[1743589698502,0.1174871,85114.0,85113.0,0.3608]
[1743589698693,0.11912711,85114.0,85113.0,0.3608]
[1743589698891,0.24133804,85114.0,85113.0,0.3608]
[1743589699286,0.33873804,85114.0,85113.0,0.3608]
[1743589699698,0.1174912,85111.0,85104.0,0.35041204]
[1743589699995,0.11913121,85111.0,85104.0,0.46791264]
[1743589700198,0.24522043,85111.0,85107.0,0.117496]
[1743589700493,0.24522043,85111.0,85109.0,0.1174931]
[1743589700699,0.24522043,85111.0,85104.0,0.35041204]
[1743589700898,0.24522043,85111.0,85105.0,0.1174989]
[1743589701088,0.1174995,85105.0,85104.0,0.35041204]
[1743589701290,0.11913951,85105.0,85104.0,0.35041204]
[1743589701594,0.24978854,85105.0,85104.0,0.35041204]
[1743589701789,0.21092904,85105.0,85104.0,0.46791294]
[1743589701989,0.13228904,85105.0,85104.0,0.1175009]
[1743589702495,0.24978854,85105.0,85104.0,0.1175009]
[1743589702704,0.13228904,85105.0,85104.0,0.1175009]
[1743589702885,0.13064903,85105.0,85104.0,0.1175009]
[1743589703086,0.13228904,85105.0,85104.0,0.1175009]
[1743589703291,0.24978854,85105.0,85104.0,0.1175009]
[1743589703787,0.24978854,85105.0,85102.0,0.1532518]
[1743589703788,0.1175023,85103.0,85102.0,0.0945]
[1743589703993,0.11914231,85103.0,85102.0,0.2120037]
[1743589704192,0.252175,85103.0,85102.0,0.2120037]
[1743589704395,0.1346727,85103.0,85102.0,0.2120037]
[1743589704704,0.13303269,85103.0,85102.0,0.2120037]
[1743589705199,0.1175037,85102.0,85101.0,0.3608]